[Event "ONJK-DE 2019"]
[Site "Borne"]
[Date "2019.08.06"]
[Round "2.4"]
[White "Zoet, Otto"]
[Black "Ponomarev, Ivan"]
[Result "0-1"]
[ECO "B33"]
[WhiteElo "1146"]
[BlackElo "1317"]
[Annotator "NA"]
[PlyCount "90"]
[EventDate "2019.08.05"]
[EventType "swiss"]
[EventCountry "NED"]
[SourceTitle "playchess.com"]
[Source "ChessBase"]
[SourceQuality "1"]
[TimeControl "2400+30"]

1. e4 {[%emt 0:00:00]} c5 {[%emt 0:00:00]} 2. Nf3 {[%emt 0:00:00]} e6 {[%emt 0:00:00]} 3. d4 {[%emt 0:00:00]} cxd4 {[%emt 0:00:00]} 4. Nxd4 {[%emt 0:00:00]} Nf6 {[%emt 0:00:03]} 5. Nc3 {[%emt 0:00:04]} Nc6 {[%emt 0:01:07]} 6. Ndb5 {[%emt 0:00:18]} d6 {[%emt 0:02:56]} 7. Bf4 {[%emt 0:00:30]} e5 {[%emt 0:01:14]} 8. Bg5 {[%emt 0:00:23]} a6 {[%emt 0:01:34]} 9. Na3 {[%emt 0:00:38]} b5 {[%emt 0:04:28]} 10. Nd5 {[%emt 0:00:49]} Be7 {[%emt 0:03:48]} 11. Bxf6 {[%emt 0:00:25]} gxf6 {[%emt 0:00:43]} 12. c3 {[%emt 0:01:39]} f5 {[%emt 0:03:28]} 13. Qf3 {[%emt 0:03:04]} fxe4 {[%emt 0:05:34]} 14. Qxe4 {[%emt 0:00:28]} Bb7 {[%emt 0:03:03]} 15. O-O-O {[%emt 0:02:46]} Rc8 {[%emt 0:04:52]} 16. Be2 {[%emt 0:04:55]} Nd4 {[%emt 0:05:37]} 17. Bg4 {[%emt 0:01:34]} f5 {[%emt 0:01:51]} 18. Bxf5 {[%emt 0:02:46]} Bxd5 {[%emt 0:00:39]} 19. Qg4 {[%emt 0:03:36]} Nxf5 {[%emt 0:02:31]} 20. Qh5+ {[%emt 0:01:44]} Bf7 {[%emt 0:00:52]} 21. Qxf5 {[%emt 0:00:13]} Bg5+ {[%emt 0:00:29]} 22. Rd2 {[%emt 0:01:00]} b4 {[%emt 0:02:27]} 23. Nb1 {[%emt 0:00:54]} Bxd2+ {[%emt 0:00:29]} 24. Kxd2 {[%emt 0:00:15]} Bg6 {[%emt 0:01:13]} 25. Qe6+ {[%emt 0:00:53]} Qe7 {[%emt 0:00:10]} 26. Qxc8+ {[%emt 0:00:08]} Qd8 {[%emt 0:00:21]} 27. Qxa6 {[%emt 0:01:58]} Qg5+ {[%emt 0:01:10]} 28. Ke2 {[%emt 0:02:03]} Qg4+ {[%emt 0:01:45]} 29. Kd2 {[%emt 0:02:38]} Qf4+ {[%emt 0:00:39]} 30. Ke2 {[%emt 0:00:22]} Qe4+ {[%emt 0:00:27]} 31. Kd2 {[%emt 0:00:27]} Qf4+ {[%emt 0:00:54]} 32. Kd1 {[%emt 0:00:52]} Qg4+ {[%emt 0:00:54]} 33. Kc1 {[%emt 0:01:33]} Qxg2 {[%emt 0:00:31]} 34. Rd1 {[%emt 0:00:10]} Qg5+ {[%emt 0:00:25]} 35. Nd2 {[%emt 0:00:58]} Qf5 {[%emt 0:00:34]} 36. Qa4+ {[%emt 0:00:19]} Ke7 {[%emt 0:00:16]} 37. c4 {[%emt 0:00:13]} Ra8 {[%emt 0:00:44]} 38. Qb3 {[%emt 0:00:57]} Rxa2 {[%emt 0:00:30]} 39. Nb1 {[%emt 0:00:25]} Qxb1+ {[%emt 0:00:11]} 40. Kd2 {[%emt 0:00:25]} Rxb2+ {[%emt 0:00:07]} 41. Ke1 {[%emt 0:03:01]} Rxb3 {[%emt 0:00:05]} 42. Kf1 {[%emt 0:00:44]} Qxd1+ {[%emt 0:00:07]} 43. Kg2 {[%emt 0:00:10]} Be4+ {[%emt 0:00:03]} 44. f3 {[%emt 0:00:20]} Qxf3+ {[%emt 0:00:05]} 45. Kg1 {[%emt 0:00:11]} Rb1# {[%emt 0:00:22]} 0-1

[Event "ONJK-DE 2019"]
[Site "Borne"]
[Date "2019.08.06"]
[Round "2.5"]
[White "Broos, Oscar"]
[Black "Koene, Noel"]
[Result "1-0"]
[ECO "B30"]
[WhiteElo "1012"]
[BlackElo "1638"]
[Annotator "NA"]
[PlyCount "123"]
[EventDate "2019.08.05"]
[EventType "swiss"]
[EventCountry "NED"]
[SourceTitle "playchess.com"]
[Source "ChessBase"]
[SourceQuality "1"]
[TimeControl "2400+30"]

1. e4 {[%emt 0:00:00]} c5 {[%emt 0:00:00]} 2. Nf3 {[%emt 0:00:00]} g6 {[%emt 0:00:00]} 3. Bc4 {[%emt 0:00:12]} Bg7 {[%emt 0:00:00]} 4. Nc3 {[%emt 0:00:17]} Nc6 {[%emt 0:00:00]} 5. d3 {[%emt 0:00:28]} Nf6 {[%emt 0:00:00]} 6. Be3 {[%emt 0:00:18]} d6 {[%emt 0:00:11]} 7. h3 {[%emt 0:00:15]} O-O {[%emt 0:00:26]} 8. O-O {[%emt 0:00:28]} e6 {[%emt 0:00:12]} 9. Bg5 {[%emt 0:00:29]} Qd7 {[%emt 0:01:40]} 10. Qd2 {[%emt 0:00:58]} d5 {[%emt 0:03:36]} 11. exd5 {[%emt 0:03:18]} exd5 12. Bb5 {[%emt 0:02:37]} Re8 {[%emt 0:02:58]} 13. Rae1 {[%emt 0:00:00]} a6 {[%emt 0:03:27]} 14. Bxc6 {[%emt 0:00:00]} bxc6 {[%emt 0:01:09]} 15. Na4 {[%emt 0:01:09]} Rxe1 {[%emt 0:03:39]} 16. Rxe1 {[%emt 0:01:36]} Qd8 {[%emt 0:04:04]} 17. Nxc5 {[%emt 0:01:12]} Ra7 {[%emt 0:09:10]} 18. Qe3 {[%emt 0:01:35]} Ra8 {[%emt 0:04:23]} 19. Qe7 {[%emt 0:01:51]} Qxe7 {[%emt 0:01:13]} 20. Rxe7 {[%emt 0:00:22]} Bf8 {[%emt 0:00:46]} 21. Bxf6 {[%emt 0:01:08]} Bxe7 {[%emt 0:00:07]} 22. Bxe7 {[%emt 0:00:09]} Bb7 {[%emt 0:02:05]} 23. Bd6 {[%emt 0:00:34]} Bc8 {[%emt 0:00:23]} 24. Ne5 {[%emt 0:00:33]} Be6 {[%emt 0:01:14]} 25. Nxc6 {[%emt 0:00:32]} h6 {[%emt 0:01:03]} 26. b4 {[%emt 0:00:48]} Kh7 {[%emt 0:00:48]} 27. Nd4 {[%emt 0:02:27]} a5 {[%emt 0:00:01]} 28. b5 {[%emt 0:00:00]} Re8 {[%emt 0:03:34]} 29. b6 {[%emt 0:00:00]} Bc8 {[%emt 0:00:53]} 30. b7 {[%emt 0:00:00]} Bxb7 {[%emt 0:00:02]} 31. Nxb7 {[%emt 0:00:00]} f5 {[%emt 0:00:53]} 32. Nxa5 {[%emt 0:00:26]} Ra8 {[%emt 0:00:20]} 33. Ndc6 {[%emt 0:00:22]} Re8 {[%emt 0:00:57]} 34. Be7 {[%emt 0:00:41]} d4 {[%emt 0:00:31]} 35. Nc4 {[%emt 0:00:44]} Ra8 {[%emt 0:00:33]} 36. a3 {[%emt 0:00:17]} Kg7 {[%emt 0:00:15]} 37. Nd2 {[%emt 0:00:42]} Ra6 {[%emt 0:00:37]} 38. Nxd4 {[%emt 0:00:31]} Kf7 {[%emt 0:00:38]} 39. Bb4 {[%emt 0:00:12]} Kf6 {[%emt 0:00:38]} 40. f4 {[%emt 0:00:19]} g5 {[%emt 0:00:12]} 41. g3 {[%emt 0:00:20]} h5 {[%emt 0:00:39]} 42. h4 {[%emt 0:00:39]} gxf4 {[%emt 0:00:50]} 43. gxf4 {[%emt 0:00:45]} Ra8 {[%emt 0:00:00]} 44. c4 {[%emt 0:00:21]} Rd8 {[%emt 0:00:11]} 45. Be7+ {[%emt 0:00:47]} Kxe7 {[%emt 0:00:13]} 46. Nc6+ {[%emt 0:00:13]} Kd7 {[%emt 0:00:29]} 47. Nxd8 {[%emt 0:00:14]} Kxd8 {[%emt 0:00:07]} 48. Nf3 {[%emt 0:00:17]} Kc7 {[%emt 0:00:03]} 49. Ne5 {[%emt 0:00:23]} Kd6 {[%emt 0:00:19]} 50. Kf2 {[%emt 0:00:16]} Kc5 {[%emt 0:00:23]} 51. Ke3 {[%emt 0:00:23]} Kb6 {[%emt 0:00:04]} 52. d4 {[%emt 0:00:13]} Kc7 {[%emt 0:00:09]} 53. c5 {[%emt 0:00:12]} Kc8 {[%emt 0:00:31]} 54. d5 {[%emt 0:00:14]} Kc7 {[%emt 0:00:08]} 55. a4 {[%emt 0:00:13]} Kb7 {[%emt 0:00:07]} 56. a5 {[%emt 0:00:15]} Kc7 {[%emt 0:00:04]} 57. a6 {[%emt 0:00:11]} Kc8 {[%emt 0:00:15]} 58. c6 {[%emt 0:00:18]} Kc7 {[%emt 0:00:03]} 59. a7 {[%emt 0:00:14]} Kd8 {[%emt 0:00:36]} 60. a8=Q+ {[%emt 0:00:17]} Kc7 {[%emt 0:00:09]} 61. Qb7+ {[%emt 0:00:15]} Kd6 {[%emt 0:00:00]} 62. c7 {[%emt 0:00:19]} 1-0

[Event "ONJK-DE 2019"]
[Site "Borne"]
[Date "2019.08.06"]
[Round "2.6"]
[White "Feng, Elysia"]
[Black "Ekker, Maxim"]
[Result "1/2-1/2"]
[ECO "C68"]
[WhiteElo "1314"]
[BlackElo "976"]
[Annotator "NA"]
[PlyCount "55"]
[EventDate "2019.08.05"]
[EventType "swiss"]
[EventCountry "NED"]
[SourceTitle "playchess.com"]
[Source "ChessBase"]
[SourceQuality "1"]
[TimeControl "2400+30"]

1. e4 {[%emt 0:00:00]} e5 {[%emt 0:00:00]} 2. Nf3 {[%emt 0:00:30]} Nc6 {[%emt 0:00:30]} 3. Bb5 {[%emt 0:00:30]} d6 {[%emt 0:00:38]} 4. d4 {[%emt 0:00:30]} a6 {[%emt 0:00:40]} 5. Bxc6+ {[%emt 0:00:30]} bxc6 {[%emt 0:00:30]} 6. dxe5 {[%emt 0:00:30]} Bg4 {[%emt 0:00:30]} 7. exd6 {[%emt 0:00:30]} cxd6 {[%emt 0:00:36]} 8. h3 {[%emt 0:00:30]} Be6 {[%emt 0:01:26]} 9. O-O {[%emt 0:00:30]} g6 {[%emt 0:00:59]} 10. Bg5 {[%emt 0:00:30]} Qb6 {[%emt 0:00:30]} 11. Bc1 {[%emt 0:02:50]} c5 {[%emt 0:01:42]} 12. Nc3 {[%emt 0:00:47]} Bg7 {[%emt 0:02:33]} 13. Rb1 {[%emt 0:01:29]} Bxc3 {[%emt 0:01:14]} 14. Be3 {[%emt 0:01:52]} Bf6 {[%emt 0:08:44]} 15. b4 {[%emt 0:01:44]} Qc6 {[%emt 0:01:05]} 16. bxc5 {[%emt 0:01:08]} dxc5 {[%emt 0:00:30]} 17. e5 {[%emt 0:02:05]} Bg7 {[%emt 0:02:55]} 18. a3 {[%emt 0:00:42]} f6 {[%emt 0:04:00]} 19. exf6 {[%emt 0:00:58]} Bxf6 {[%emt 0:00:30]} 20. Qe2 {[%emt 0:00:43]} Ne7 {[%emt 0:02:46]} 21. Rfe1 {[%emt 0:00:48]} Bf7 {[%emt 0:06:40]} 22. Bg5 {[%emt 0:03:04]} Bxg5 {[%emt 0:03:27]} 23. Nxg5 {[%emt 0:00:30]} Qc7 {[%emt 0:00:30]} 24. Qe4 {[%emt 0:01:25]} Ra7 {[%emt 0:01:47]} 25. Qe5 {[%emt 0:02:29]} O-O {[%emt 0:02:33]} 26. Nxf7 {[%emt 0:02:58]} Kxf7 {[%emt 0:00:56]} 27. Qe6+ {[%emt 0:01:00]} Kg7 {[%emt 0:00:30]} 28. Re3 {[%emt 0:00:41]} 1/2-1/2

[Event "ONJK-DE 2019"]
[Site "Borne"]
[Date "2019.08.06"]
[Round "2.7"]
[White "Ganeshram, Nirupa"]
[Black "Ekker, Joshua"]
[Result "0-1"]
[ECO "C44"]
[WhiteElo "973"]
[BlackElo "1450"]
[Annotator "NA"]
[PlyCount "80"]
[EventDate "2019.08.05"]
[EventType "swiss"]
[EventCountry "NED"]
[SourceTitle "playchess.com"]
[Source "ChessBase"]
[SourceQuality "1"]
[TimeControl "2400+30"]

1. e4 {[%emt 0:00:00]} e5 {[%emt 0:00:00]} 2. d4 {[%emt 0:00:00]} exd4 {[%emt 0:00:00]} 3. c3 {[%emt 0:00:00]} dxc3 {[%emt 0:00:45]} 4. Bc4 {[%emt 0:00:00]} Nc6 {[%emt 0:01:57]} 5. Nf3 {[%emt 0:00:53]} Bb4 {[%emt 0:05:16]} 6. O-O {[%emt 0:02:10]} Na5 {[%emt 0:06:20]} 7. Bb3 {[%emt 0:04:26]} Nxb3 {[%emt 0:03:06]} 8. Qxb3 {[%emt 0:02:24]} c2 {[%emt 0:10:04]} 9. Qxb4 {[%emt 0:04:52]} cxb1=Q {[%emt 0:00:31]} 10. Rxb1 {[%emt 0:00:31]} Qe7 {[%emt 0:01:42]} 11. Qc3 {[%emt 0:02:21]} Nf6 {[%emt 0:04:44]} 12. Qxc7 {[%emt 0:02:18]} Nxe4 {[%emt 0:00:21]} 13. Re1 {[%emt 0:01:06]} d5 {[%emt 0:00:48]} 14. Qxe7+ {[%emt 0:00:57]} Kxe7 {[%emt 0:00:19]} 15. Bd2 {[%emt 0:00:23]} Be6 {[%emt 0:01:18]} 16. Bb4+ {[%emt 0:00:32]} Kd7 {[%emt 0:01:25]} 17. Ne5+ {[%emt 0:00:53]} Ke8 {[%emt 0:00:51]} 18. f3 {[%emt 0:01:31]} Nf6 {[%emt 0:00:41]} 19. Rbd1 {[%emt 0:00:53]} a5 {[%emt 0:00:58]} 20. Bc5 {[%emt 0:00:45]} Nd7 {[%emt 0:01:51]} 21. Nxd7 {[%emt 0:00:26]} Kxd7 {[%emt 0:00:09]} 22. f4 {[%emt 0:02:07]} Rac8 {[%emt 0:00:55]} 23. Rc1 {[%emt 0:01:27]} Rhe8 {[%emt 0:01:42]} 24. Rf1 {[%emt 0:02:20]} Bf5 {[%emt 0:00:37]} 25. Rfd1 {[%emt 0:00:46]} Be4 {[%emt 0:00:54]} 26. Bb6 {[%emt 0:01:55]} a4 {[%emt 0:01:40]} 27. Rd4 {[%emt 0:01:09]} Rxc1+ {[%emt 0:00:33]} 28. Kf2 {[%emt 0:00:05]} Rc2+ {[%emt 0:00:18]} 29. Kg3 {[%emt 0:00:16]} Rxg2+ {[%emt 0:00:07]} 30. Kh3 {[%emt 0:00:30]} Rxb2 {[%emt 0:00:23]} 31. Bc5 {[%emt 0:00:21]} Bf5+ {[%emt 0:00:29]} 32. Kh4 {[%emt 0:00:20]} Rxh2+ {[%emt 0:00:24]} 33. Kg3 {[%emt 0:00:15]} Rh3+ {[%emt 0:00:31]} 34. Kf2 {[%emt 0:00:14]} Be4 {[%emt 0:00:40]} 35. Rxa4 {[%emt 0:00:23]} Rc8 {[%emt 0:00:38]} 36. Ra5 {[%emt 0:00:54]} b6 {[%emt 0:00:34]} 37. Bxb6 {[%emt 0:00:20]} Rc2+ {[%emt 0:00:07]} 38. Kf1 {[%emt 0:00:13]} Rh1+ {[%emt 0:00:43]} 39. Bg1 {[%emt 0:00:06]} Bg2+ {[%emt 0:00:16]} 40. Ke1 {[%emt 0:00:15]} Rxg1# {[%emt 0:00:54]} 0-1

[Event "ONJK-DE 2019"]
[Site "Borne"]
[Date "2019.08.06"]
[Round "2.8"]
[White "De Jong, Quint"]
[Black "Van Steijn, Jefta"]
[Result "0-1"]
[ECO "D32"]
[WhiteElo "1260"]
[BlackElo "947"]
[Annotator "NA"]
[PlyCount "62"]
[EventDate "2019.08.05"]
[EventType "swiss"]
[EventCountry "NED"]
[SourceTitle "playchess.com"]
[Source "ChessBase"]
[SourceQuality "1"]
[TimeControl "2400+30"]

1. d4 {[%emt 0:00:00]} Nf6 {[%emt 0:00:00]} 2. c4 {[%emt 0:00:00]} e6 {[%emt 0:00:00]} 3. Nc3 {[%emt 0:00:00]} d5 {[%emt 0:00:00]} 4. Nf3 {[%emt 0:00:00]} c5 {[%emt 0:00:00]} 5. cxd5 {[%emt 0:00:00]} exd5 {[%emt 0:00:12]} 6. dxc5 {[%emt 0:00:00]} Bxc5 {[%emt 0:00:11]} 7. Bg5 {[%emt 0:00:17]} O-O {[%emt 0:01:13]} 8. Nxd5 {[%emt 0:00:31]} Qxd5 {[%emt 0:00:26]} 9. Bxf6 {[%emt 0:00:10]} Qxd1+ {[%emt 0:00:14]} 10. Rxd1 {[%emt 0:00:05]} gxf6 {[%emt 0:00:14]} 11. h4 {[%emt 0:00:09]} Nc6 {[%emt 0:00:44]} 12. h5 {[%emt 0:00:19]} Bg4 {[%emt 0:00:57]} 13. Rh4 {[%emt 0:00:42]} Bxf3 {[%emt 0:00:33]} 14. gxf3 {[%emt 0:00:09]} Bb4+ {[%emt 0:00:43]} 15. Rd2 {[%emt 0:01:44]} Rad8 {[%emt 0:00:51]} 16. Rxb4 {[%emt 0:00:15]} Nxb4 {[%emt 0:00:38]} 17. e4 {[%emt 0:00:20]} Rxd2 {[%emt 0:00:06]} 18. Kxd2 {[%emt 0:00:08]} Nxa2 {[%emt 0:01:31]} 19. Kc2 {[%emt 0:01:01]} Nb4+ {[%emt 0:00:57]} 20. Kb3 {[%emt 0:00:21]} Nc6 {[%emt 0:00:37]} 21. Bh3 {[%emt 0:00:25]} Nd4+ {[%emt 0:01:10]} 22. Kb4 {[%emt 0:01:12]} Nxf3 {[%emt 0:00:28]} 23. Bg4 {[%emt 0:01:43]} Ng5 {[%emt 0:01:22]} 24. Bf5 {[%emt 0:01:06]} Re8 {[%emt 0:00:49]} 25. f3 {[%emt 0:02:03]} Nxf3 {[%emt 0:00:43]} 26. Kc5 {[%emt 0:00:16]} Re5+ {[%emt 0:01:26]} 27. Kd6 {[%emt 0:02:29]} Nd4 {[%emt 0:01:17]} 28. Kc7 {[%emt 0:01:57]} Nxf5 {[%emt 0:00:47]} 29. exf5 {[%emt 0:00:26]} Rxf5 {[%emt 0:00:17]} 30. Kxb7 {[%emt 0:00:05]} Rb5+ {[%emt 0:00:17]} 31. Kxa7 {[%emt 0:00:11]} Rxb2 {[%emt 0:00:13]} 0-1

[Event "ONJK-DE 2019"]
[Site "Borne"]
[Date "2019.08.06"]
[Round "2.9"]
[White "Pereira Garza, Cecilia"]
[Black "Kazarjan, Gachatur"]
[Result "0-1"]
[ECO "C10"]
[WhiteElo "966"]
[BlackElo "1490"]
[Annotator "NA"]
[PlyCount "66"]
[EventDate "2019.08.05"]
[EventType "swiss"]
[EventCountry "NED"]
[SourceTitle "playchess.com"]
[Source "ChessBase"]
[SourceQuality "1"]
[TimeControl "2400+30"]

1. d4 {[%emt 0:00:00]} e6 {[%emt 0:00:00]} 2. e4 {[%emt 0:00:02]} d5 {[%emt 0:00:00]} 3. Nc3 {[%emt 0:00:44]} Nc6 {[%emt 0:00:00]} 4. Nf3 {[%emt 0:00:48]} Bb4 {[%emt 0:00:17]} 5. e5 {[%emt 0:00:59]} f6 {[%emt 0:00:33]} 6. Bb5 {[%emt 0:01:12]} a6 {[%emt 0:01:15]} 7. Bxc6+ {[%emt 0:00:57]} bxc6 {[%emt 0:00:17]} 8. O-O {[%emt 0:00:48]} c5 {[%emt 0:00:55]} 9. exf6 {[%emt 0:02:36]} Nxf6 {[%emt 0:00:25]} 10. Re1 {[%emt 0:00:43]} O-O {[%emt 0:00:49]} 11. Bg5 {[%emt 0:01:12]} Qd6 {[%emt 0:00:46]} 12. Qd3 {[%emt 0:03:07]} cxd4 {[%emt 0:00:42]} 13. Nxd4 {[%emt 0:00:34]} Qb6 {[%emt 0:02:52]} 14. Qe3 {[%emt 0:02:57]} Bc5 {[%emt 0:00:49]} 15. Rad1 {[%emt 0:00:57]} Ng4 {[%emt 0:00:14]} 16. Qe2 {[%emt 0:04:49]} Bxd4 {[%emt 0:01:49]} 17. Qxg4 {[%emt 0:02:20]} Bxf2+ {[%emt 0:01:43]} 18. Kh1 {[%emt 0:00:30]} Bxe1 {[%emt 0:00:29]} 19. Rxe1 {[%emt 0:00:20]} Qf2 {[%emt 0:00:25]} 20. Rg1 {[%emt 0:01:35]} a5 {[%emt 0:01:11]} 21. Qd1 {[%emt 0:02:11]} Ba6 {[%emt 0:00:11]} 22. Qe1 {[%emt 0:03:41]} Qb6 {[%emt 0:00:40]} 23. Na4 {[%emt 0:01:13]} Qd4 {[%emt 0:00:30]} 24. Nc3 {[%emt 0:00:25]} Kh8 {[%emt 0:00:41]} 25. Be3 {[%emt 0:03:12]} Qc4 {[%emt 0:01:30]} 26. b3 {[%emt 0:02:11]} Qf1 {[%emt 0:02:02]} 27. Qxf1 {[%emt 0:01:40]} Bxf1 {[%emt 0:00:59]} 28. Nd1 {[%emt 0:02:20]} e5 {[%emt 0:01:10]} 29. Bf2 {[%emt 0:00:33]} Be2 {[%emt 0:00:27]} 30. Bg3 {[%emt 0:00:21]} e4 {[%emt 0:00:27]} 31. Bxc7 {[%emt 0:01:09]} Rac8 {[%emt 0:00:17]} 32. Bd6 {[%emt 0:01:02]} Rf6 {[%emt 0:00:21]} 33. Be5 {[%emt 0:00:08]} Rf5 {[%emt 0:00:05]} 0-1

[Event "ONJK-DE 2019"]
[Site "Borne"]
[Date "2019.08.06"]
[Round "2.10"]
[White "Arnold, Rhys"]
[Black "De Vreugt Pezo, Max"]
[Result "1-0"]
[ECO "C21"]
[WhiteElo "1604"]
[BlackElo "1007"]
[Annotator "NA"]
[PlyCount "65"]
[EventDate "2019.08.05"]
[EventType "swiss"]
[EventCountry "NED"]
[SourceTitle "playchess.com"]
[Source "ChessBase"]
[SourceQuality "1"]
[TimeControl "2400+30"]

1. e4 {[%emt 0:00:00]} e5 {[%emt 0:00:00]} 2. d4 {[%emt 0:00:00]} f6 {[%emt 0:00:00]} 3. dxe5 {[%emt 0:00:00]} fxe5 {[%emt 0:00:00]} 4. Qh5+ {[%emt 0:00:02]} g6 {[%emt 0:00:05]} 5. Qxe5+ {[%emt 0:00:11]} Qe7 {[%emt 0:00:17]} 6. Qxh8 {[%emt 0:00:34]} Qxe4+ {[%emt 0:00:52]} 7. Be3 {[%emt 0:00:39]} Ne7 {[%emt 0:00:24]} 8. Qc3 {[%emt 0:01:24]} Kd8 {[%emt 0:00:11]} 9. Nf3 {[%emt 0:01:21]} Nec6 {[%emt 0:00:34]} 10. Bd3 {[%emt 0:00:36]} Qe8 {[%emt 0:01:02]} 11. O-O {[%emt 0:00:50]} d6 {[%emt 0:00:28]} 12. Re1 {[%emt 0:00:35]} Qf7 {[%emt 0:00:40]} 13. Bg5+ {[%emt 0:03:36]} Be7 {[%emt 0:00:33]} 14. Bxe7+ {[%emt 0:00:33]} Nxe7 {[%emt 0:00:05]} 15. Nbd2 {[%emt 0:04:36]} Nbc6 {[%emt 0:00:33]} 16. Bb5 {[%emt 0:04:12]} Bd7 {[%emt 0:00:52]} 17. Bxc6 {[%emt 0:00:54]} Bxc6 {[%emt 0:00:04]} 18. Nd4 {[%emt 0:02:39]} a6 {[%emt 0:02:31]} 19. Nxc6+ {[%emt 0:00:42]} bxc6 {[%emt 0:00:33]} 20. Nf3 {[%emt 0:00:39]} Kd7 {[%emt 0:00:17]} 21. Rad1 {[%emt 0:00:50]} Nd5 {[%emt 0:00:19]} 22. Qb3 {[%emt 0:01:17]} Qf8 {[%emt 0:00:17]} 23. Qc4 {[%emt 0:01:15]} Qf5 {[%emt 0:00:24]} 24. Nd4 {[%emt 0:01:19]} Qg5 {[%emt 0:01:02]} 25. Qxc6+ {[%emt 0:00:20]} Kc8 {[%emt 0:00:35]} 26. Re8+ {[%emt 0:00:28]} Qd8 {[%emt 0:00:12]} 27. Rxd8+ {[%emt 0:00:11]} Kxd8 {[%emt 0:00:10]} 28. Qxa8+ {[%emt 0:00:09]} Kd7 {[%emt 0:00:03]} 29. Qxd5 {[%emt 0:00:16]} c5 {[%emt 0:00:12]} 30. Qc6+ {[%emt 0:00:18]} Ke7 {[%emt 0:00:11]} 31. Re1+ {[%emt 0:00:52]} Kf7 {[%emt 0:00:08]} 32. Qd7+ {[%emt 0:00:09]} Kf6 {[%emt 0:00:06]} 33. Qe7# {[%emt 0:00:12]} 1-0

[Event "ONJK-DE 2019"]
[Site "Borne"]
[Date "2019.08.06"]
[Round "2.11"]
[White "Geldof, Wouter"]
[Black "Cappan, Stan"]
[Result "0-1"]
[ECO "C47"]
[WhiteElo "892"]
[BlackElo "1319"]
[Annotator "NA"]
[PlyCount "112"]
[EventDate "2019.08.05"]
[EventType "swiss"]
[EventCountry "NED"]
[SourceTitle "playchess.com"]
[Source "ChessBase"]
[SourceQuality "1"]
[TimeControl "2400+30"]

1. e4 {[%emt 0:00:00]} e5 {[%emt 0:00:00]} 2. Nf3 {[%emt 0:00:00]} Nc6 {[%emt 0:00:00]} 3. Nc3 {[%emt 0:00:00]} Nf6 {[%emt 0:00:00]} 4. d3 {[%emt 0:00:00]} h6 {[%emt 0:00:06]} 5. Bd2 {[%emt 0:00:10]} Bc5 {[%emt 0:00:23]} 6. Be2 {[%emt 0:00:08]} d6 {[%emt 0:00:25]} 7. O-O {[%emt 0:00:07]} O-O {[%emt 0:00:20]} 8. h3 {[%emt 0:00:16]} Be6 {[%emt 0:00:27]} 9. Qc1 {[%emt 0:00:35]} Qd7 {[%emt 0:00:38]} 10. Bxh6 {[%emt 0:00:50]} gxh6 {[%emt 0:00:10]} 11. Qxh6 {[%emt 0:00:09]} Nh7 {[%emt 0:00:28]} 12. Ng5 {[%emt 0:00:47]} Nxg5 {[%emt 0:00:37]} 13. Qxg5+ {[%emt 0:00:10]} Kh8 {[%emt 0:00:15]} 14. Qh6+ {[%emt 0:00:14]} Kg8 {[%emt 0:00:15]} 15. Kh2 {[%emt 0:00:31]} f6 {[%emt 0:00:35]} 16. f4 {[%emt 0:00:38]} Qg7 {[%emt 0:00:21]} 17. Qh4 {[%emt 0:01:09]} Kf7 {[%emt 0:00:42]} 18. Rf3 {[%emt 0:00:40]} Ke7 {[%emt 0:00:58]} 19. Rg3 {[%emt 0:02:52]} Qf7 {[%emt 0:00:34]} 20. Qh6 {[%emt 0:00:54]} Kd8 {[%emt 0:00:26]} 21. Rg7 {[%emt 0:00:37]} Qe8 {[%emt 0:00:31]} 22. f5 {[%emt 0:00:51]} Bf7 {[%emt 0:01:02]} 23. Qxf6+ {[%emt 0:01:19]} Qe7 {[%emt 0:00:24]} 24. Qh6 {[%emt 0:00:27]} Kc8 {[%emt 0:03:32]} 25. Nd5 {[%emt 0:00:33]} Qe8 {[%emt 0:01:07]} 26. Bg4 {[%emt 0:00:55]} b6 {[%emt 0:01:12]} 27. Nf6 {[%emt 0:01:38]} Qd8 {[%emt 0:00:47]} 28. Nh7 {[%emt 0:01:19]} Rh8 {[%emt 0:00:56]} 29. Rxf7 {[%emt 0:00:46]} Kb7 {[%emt 0:00:46]} 30. Be2 {[%emt 0:00:38]} Qe8 {[%emt 0:02:00]} 31. Qg7 {[%emt 0:00:27]} Rc8 {[%emt 0:00:27]} 32. Nf6 {[%emt 0:00:56]} Qd8 {[%emt 0:00:24]} 33. a4 {[%emt 0:01:48]} Be3 {[%emt 0:01:38]} 34. Ra3 {[%emt 0:00:59]} Bf4+ {[%emt 0:00:00]} 35. g3 {[%emt 0:00:21]} Bh6 {[%emt 0:00:00]} 36. Qg6 {[%emt 0:00:52]} Nd4 {[%emt 0:00:00]} 37. Bd1 {[%emt 0:00:41]} a5 {[%emt 0:01:05]} 38. Rc3 {[%emt 0:00:40]} Rf8 {[%emt 0:01:10]} 39. Bh5 {[%emt 0:03:02]} Rxf7 {[%emt 0:01:44]} 40. Qxf7 {[%emt 0:01:51]} Bg5 {[%emt 0:02:54]} 41. Qd5+ {[%emt 0:00:03]} Ka7 {[%emt 0:00:35]} 42. Nh7 {[%emt 0:03:42]} Qe7 {[%emt 0:00:00]} 43. Nxg5 {[%emt 0:00:39]} Qxg5 {[%emt 0:00:00]} 44. Qf7 {[%emt 0:01:41]} Qd2+ {[%emt 0:00:00]} 45. Kg1 {[%emt 0:00:55]} Qe1+ {[%emt 0:00:00]} 46. Kg2 {[%emt 0:00:21]} Ne2 {[%emt 0:00:00]} 47. Bxe2 {[%emt 0:00:09]} Qxe2+ {[%emt 0:00:00]} 48. Kg1 {[%emt 0:00:11]} Qe3+ {[%emt 0:00:00]} 49. Kg2 {[%emt 0:00:18]} Qe2+ {[%emt 0:00:20]} 50. Kg1 {[%emt 0:00:12]} Qf3 {[%emt 0:00:28]} 51. Kh2 {[%emt 0:00:53]} Qf2+ {[%emt 0:01:00]} 52. Kh1 {[%emt 0:00:40]} Qxg3 {[%emt 0:00:20]} 53. Qd7 {[%emt 0:00:22]} Qxh3+ {[%emt 0:00:17]} 54. Kg1 {[%emt 0:00:39]} Rg8+ {[%emt 0:00:10]} 55. Kf2 {[%emt 0:00:08]} Rg2+ {[%emt 0:00:09]} 56. Kf1 {[%emt 0:00:17]} Qh1# {[%emt 0:00:44]} 0-1